bitfinex-derivatives/quotes_BTCF0:USTF0_20241217
["timestamp","ask_amount","ask_price","bid_price","bid_amount"]
[1734450906343,0.047136,106070.0,106060.0,0.002]
[1734450906344,0.048136,106070.0,106060.0,0.002]
[1734450906643,0.001,106080.0,106060.0,0.3628]
[1734450906847,0.04714,106070.0,106060.0,0.3628]
[1734450907041,0.04814,106070.0,106060.0,0.3648]
[1734450907242,0.01819093,106090.0,106060.0,0.86509844]
[1734450907447,0.42783443,106100.0,106090.0,0.047127]
[1734450907448,0.00141463,106100.0,106090.0,0.047127]
[1734450907639,0.047115,106120.0,106090.0,0.84046244]
[1734450907838,0.047114,106120.0,106110.0,0.3608]
[1734450908340,0.0484068,106120.0,106110.0,0.3608]
[1734450908542,0.0484068,106120.0,106110.0,0.36090927]
[1734450909755,0.0012928,106120.0,106110.0,0.51407171]
[1734450910050,0.01876475,106120.0,106110.0,0.36090927]
[1734450910256,0.0012928,106120.0,106110.0,0.36090927]
[1734450910639,0.0012928,106120.0,106110.0,0.51407171]
[1734450910841,0.0012928,106120.0,106110.0,0.91557171]
[1734450911445,0.0012928,106120.0,106110.0,0.96268971]
[1734450911648,0.0012928,106120.0,106110.0,1.26268971]
[1734450911849,0.04861274,106150.0,106120.0,0.047112]
[1734450912044,0.04861274,106150.0,106130.0,0.3608]
[1734450912248,0.04719906,106150.0,106130.0,0.3608]
[1734450912550,0.04719906,106150.0,106140.0,0.3608]
[1734450912750,0.04719906,106150.0,106140.0,0.4015]
[1734450913458,0.06368652,106150.0,106140.0,0.4015]
[1734450914049,0.047105,106140.0,106130.0,0.3608]
[1734450914359,0.047109,106130.0,106110.0,0.77866007]
[1734450914549,0.047114,106120.0,106110.0,0.76240927]
[1734450914747,1.547114,106120.0,106110.0,0.76240927]
[1734450915446,0.047114,106120.0,106110.0,0.76240927]
[1734450916550,0.047109,106140.0,106110.0,0.96268971]
[1734450916753,0.04711,106130.0,106120.0,0.3608]
[1734450917258,0.04711,106130.0,106110.0,0.80952727]
[1734450917444,0.047113,106130.0,106110.0,0.76240927]
[1734450917649,0.047109,106130.0,106110.0,0.76240927]
[1734450918056,0.51396244,106140.0,106110.0,0.76240927]
[1734450918263,0.047114,106120.0,106110.0,0.76240927]
[1734450920168,0.047114,106120.0,106110.0,0.4015]
[1734450920358,0.3608,106130.0,106110.0,0.55466244]
[1734450920558,0.40791,106130.0,106110.0,0.448617]
[1734450920953,0.04711,106130.0,106110.0,0.448617]
[1734450921159,0.40791,106130.0,106120.0,4.103e-05]
[1734450921354,0.04711,106130.0,106120.0,4.103e-05]
[1734450923573,0.40791,106130.0,106120.0,4.103e-05]
[1734450923862,0.04711,106130.0,106120.0,4.103e-05]
[1734450924067,0.40791,106130.0,106120.0,4.103e-05]
[1734450926067,0.42404296,106130.0,106120.0,4.103e-05]
[1734450927269,0.06324296,106130.0,106120.0,0.36084103]
[1734450927467,0.06324296,106130.0,106120.0,0.56111747]
[1734450927665,0.047106,106140.0,106120.0,0.92862747]
[1734450927865,0.047106,106140.0,106120.0,0.88151347]
[1734450928671,0.047106,106140.0,106130.0,0.51396244]
[1734450928866,0.047106,106140.0,106130.0,0.3608]
[1734450929663,0.047106,106140.0,106130.0,0.407909]
[1734450930271,0.06348213,106140.0,106130.0,0.407909]
[1734450930566,9.806e-05,106150.0,106130.0,0.407909]
[1734450930567,9.806e-05,106150.0,106130.0,0.56106844]
[1734450930871,9.806e-05,106150.0,106140.0,0.92746744]
[1734450931371,9.806e-05,106150.0,106140.0,0.7272]
[1734450931557,9.806e-05,106150.0,106140.0,0.3664]
[1734450931762,0.047108,106140.0,106120.0,0.72835403]
[1734450931975,0.047108,106140.0,106120.0,1.09475403]
[1734450932274,0.047108,106140.0,106120.0,1.29502547]
[1734450932772,0.047108,106140.0,106120.0,1.24791447]
[1734450933167,0.047108,106140.0,106120.0,1.09475203]
[1734450933364,0.407909,106130.0,106120.0,4.103e-05]
[1734450933972,0.56107144,106130.0,106120.0,4.103e-05]
[1734450934277,0.407909,106130.0,106120.0,4.103e-05]
[1734450936473,0.047109,106130.0,106120.0,4.103e-05]
[1734450936668,0.407909,106130.0,106120.0,4.103e-05]
[1734450937277,0.42372002,106130.0,106120.0,4.103e-05]
[1734450938372,0.06292002,106130.0,106120.0,0.04715503]
[1734450938781,0.06292002,106130.0,106120.0,0.20031747]
[1734450939674,0.06292002,106130.0,106120.0,0.04715503]
[1734450940175,0.57688246,106130.0,106120.0,4.103e-05]
[1734450941079,0.42372002,106130.0,106120.0,4.103e-05]
[1734450941681,0.06292002,106130.0,106120.0,4.103e-05]
[1734450942478,0.06292002,106130.0,106120.0,0.09686234]
[1734450943488,0.42372002,106130.0,106120.0,0.09686234]
[1734450943985,0.42372002,106130.0,106120.0,4.103e-05]
[1734450944573,0.42372002,106130.0,106120.0,0.09686234]
[1734450944776,0.57688246,106130.0,106120.0,0.09686234]
[1734450944969,0.57688246,106130.0,106120.0,4.103e-05]
[1734450945183,0.42372002,106130.0,106120.0,4.103e-05]
[1734450945485,0.06292002,106130.0,106120.0,4.103e-05]
[1734450945876,0.42372002,106130.0,106120.0,4.103e-05]
[1734450946679,0.06292002,106130.0,106120.0,4.103e-05]
[1734450946884,0.06292002,106130.0,106120.0,0.14397634]
[1734450947085,0.06292002,106130.0,106120.0,0.09686234]
[1734450947290,0.06292002,106130.0,106120.0,4.103e-05]
[1734450947588,0.57688246,106130.0,106120.0,4.103e-05]
[1734450947776,0.047114,106120.0,106110.0,0.09716857]
[1734450948082,0.047114,106120.0,106110.0,0.09712857]
[1734450948083,0.56107644,106120.0,106110.0,0.09712857]
[1734450948275,0.047127,106100.0,106080.0,0.54491337]
[1734450948473,0.407927,106100.0,106090.0,0.047127]
[1734450949575,0.047127,106100.0,106090.0,0.047127]
[1734450950383,0.04712,106110.0,106100.0,0.047122]
[1734450950689,0.06203567,106110.0,106090.0,0.407925]
[1734450951382,0.047122,106100.0,106090.0,0.407925]
[1734450952586,0.047121,106110.0,106090.0,0.407925]
[1734450953182,0.047121,106110.0,106100.0,0.047122]
[1734450953582,0.3608,106120.0,106100.0,0.407922]
[1734450953785,0.047115,106120.0,106110.0,0.406417]
[1734450953992,0.047111,106130.0,106110.0,0.767217]
[1734450954289,0.08003674,106130.0,106110.0,0.767217]
[1734450954490,0.047114,106120.0,106110.0,0.767217]
[1734450955487,0.407906,106140.0,106120.0,0.047114]
[1734450955677,0.42274819,106140.0,106120.0,0.56107644]
[1734450955874,0.06194819,106140.0,106120.0,0.51396244]
[1734450956077,0.06194819,106140.0,106130.0,0.407909]
[1734450956284,0.06194819,106140.0,106130.0,0.047109]
[1734450956582,0.06194819,106140.0,106120.0,0.407912]
[1734450957781,0.047109,106130.0,106120.0,0.3608]
[1734450958085,0.047114,106120.0,106100.0,0.79515426]
[1734450958282,0.047114,106120.0,106100.0,0.93378144]
[1734450958481,0.407911,106130.0,106110.0,0.407917]
[1734450958686,0.407911,106130.0,106110.0,0.56107944]
[1734450958881,0.047114,106120.0,106110.0,0.047117]
[1734450959083,0.047114,106120.0,106100.0,0.78062]
[1734450959478,0.047114,106120.0,106110.0,0.407918]
[1734450959685,0.047114,106120.0,106110.0,0.047118]
[1734450959885,0.047114,106120.0,106100.0,0.7335]
[1734450960191,0.047118,106110.0,106100.0,0.3727]
[1734450962298,0.047118,106110.0,106100.0,0.419822]
[1734450963291,0.047118,106110.0,106100.0,0.3727]
[1734450965084,0.047118,106110.0,106100.0,0.780622]
[1734450965288,0.047118,106110.0,106100.0,0.7335]
[1734450965499,0.047118,106110.0,106100.0,0.3727]
[1734450966187,0.047118,106110.0,106100.0,0.780622]
[1734450966388,0.37519949,106120.0,106100.0,0.88666244]
[1734450966587,0.42231349,106120.0,106110.0,0.047118]
[1734450967187,0.42231349,106120.0,106100.0,0.93378344]
[1734450967396,0.42231349,106120.0,106100.0,0.6194921]
[1734450967593,0.46942949,106120.0,106100.0,0.6194921]
[1734450967787,0.06151349,106120.0,106100.0,0.6194921]
[1734450968698,0.06151349,106120.0,106100.0,0.6666111]
[1734450969088,0.42637784,106130.0,106110.0,0.047118]
[1734450969298,0.06557784,106130.0,106110.0,0.407918]
[1734450969499,0.047114,106120.0,106110.0,0.047118]
[1734450969696,0.047114,106120.0,106110.0,0.407918]
[1734450970295,0.047111,106130.0,106110.0,0.407918]
[1734450970489,0.047111,106130.0,106120.0,0.407914]
[1734450972195,0.06330241,106140.0,106130.0,0.047109]
[1734450972406,0.06330241,106140.0,106130.0,0.773209]
[1734450972596,0.06330241,106140.0,106130.0,0.7261]
[1734450973903,0.06330241,106140.0,106130.0,0.3608]
[1734450974495,0.06330241,106140.0,106120.0,1.04891]
[1734450974698,0.42410241,106140.0,106120.0,1.04891]
[1734450975099,0.42410241,106140.0,106120.0,1.096021]
[1734450975302,0.42410241,106140.0,106130.0,0.047109]
[1734450975503,0.06330241,106140.0,106130.0,0.047109]
[1734450976003,0.06330241,106140.0,106120.0,1.0018]
[1734450976205,0.06330241,106140.0,106120.0,1.66798097]
[1734450976409,0.407909,106130.0,106120.0,0.3156]
[1734450976599,0.047109,106130.0,106110.0,1.0970828]
[1734450976907,0.047109,106130.0,106120.0,0.407914]
[1734450977113,0.047109,106130.0,106120.0,0.97065739]
[1734450977313,0.42410241,106140.0,106120.0,0.97065739]
[1734450977906,0.42410241,106140.0,106120.0,1.01776739]
[1734450978102,0.42410241,106140.0,106130.0,0.50643596]
[1734450978305,0.06330241,106140.0,106130.0,0.50643596]
[1734450978509,0.0147816,106140.0,106130.0,0.55354496]
[1734450978710,0.36089806,106150.0,106140.0,0.047105]
[1734450978921,0.36089806,106150.0,106140.0,0.71208098]
[1734450979110,9.806e-05,106150.0,106140.0,1.07288098]
[1734450979313,9.806e-05,106150.0,106140.0,0.51009127]
[1734450979511,9.806e-05,106150.0,106140.0,1.53134751]
[1734450979807,0.407893,106170.0,106160.0,0.047096]
[1734450980210,0.3608,106170.0,106160.0,0.71193254]
[1734450980416,0.40930136,106180.0,106170.0,0.047091]
[1734450980618,0.36221336,106180.0,106170.0,0.14937533]
[1734450981219,0.01350091,106190.0,106170.0,0.6123616]
[1734450981419,0.507879,106200.0,106190.0,0.047083]
[1734450981622,0.4608,106200.0,106190.0,0.14926927]
[1734450981815,0.1,106200.0,106190.0,0.14926927]
[1734450982124,0.1,106200.0,106190.0,0.407883]
[1734450982310,0.507878,106200.0,106180.0,0.66615597]
[1734450982513,0.047083,106190.0,106180.0,0.047086]
[1734450982915,0.047083,106190.0,106180.0,0.60827882]
[1734450983119,0.56094747,106190.0,106170.0,0.56130902]
[1734450983322,0.56094747,106190.0,106170.0,9.806e-05]
[1734450983323,0.56095147,106180.0,106170.0,9.806e-05]
[1734450984221,2.24086001,106190.0,106170.0,0.04718906]
[1734450984422,0.7403,106190.0,106170.0,0.04718906]
[1734450984723,0.407887,106180.0,106170.0,0.04718906]
[1734450985623,0.047087,106180.0,106170.0,0.04718906]
[1734450985821,0.407887,106180.0,106170.0,0.04718906]
[1734450986022,0.56095147,106180.0,106170.0,9.806e-05]
[1734450986220,0.047096,106160.0,106150.0,0.3895]
[1734450986425,0.0471,106150.0,106140.0,0.00141295]
[1734450986627,0.4079,106150.0,106140.0,0.00141295]
[1734450987425,0.047097,106160.0,106140.0,0.00141295]
[1734450987628,0.047097,106160.0,106150.0,0.0471]
[1734450988228,0.0471,106150.0,106140.0,0.00141295]
[1734450988525,0.4079,106150.0,106140.0,0.00141295]
[1734450988927,0.4079,106150.0,106140.0,0.56262391]
[1734450989128,0.0471,106150.0,106140.0,0.56262391]
[1734450991723,0.56096447,106150.0,106140.0,0.56262391]
[1734450991928,0.047105,106140.0,106130.0,0.56121096]
[1734450992129,0.56096947,106140.0,106130.0,0.56121096]
[1734450992322,0.56096947,106140.0,106130.0,0.50480689]
[1734450992729,0.407905,106140.0,106130.0,0.50480689]
[1734450993127,0.407905,106140.0,106130.0,0.55191589]
[1734450993331,0.407905,106140.0,106130.0,1.18028093]
[1734450993631,0.56096947,106140.0,106130.0,1.18028093]
[1734450993832,0.56096947,106140.0,106130.0,1.0661753]
[1734450994038,0.56096947,106140.0,106130.0,0.50496434]
[1734450994236,0.56096947,106140.0,106120.0,1.18028093]
[1734450994237,0.3608,106140.0,106110.0,0.43507978]
[1734450994534,0.407911,106130.0,106110.0,0.43507778]
[1734450994734,0.407911,106130.0,106120.0,0.047114]
[1734450994945,0.047111,106130.0,106120.0,0.047114]
[1734450995441,0.407906,106140.0,106120.0,0.047114]
[1734450996139,0.047109,106130.0,106120.0,0.047114]
[1734450997326,0.047109,106130.0,106120.0,0.407914]
[1734450997636,0.047109,106130.0,106120.0,0.047114]
[1734450998031,0.047109,106130.0,106120.0,1.22775279]
[1734450998234,0.56097347,106130.0,106120.0,0.61906997]
[1734450998437,0.51386447,106130.0,106120.0,0.56171346]
[1734450998636,0.56097347,106130.0,106120.0,1.06734976]
[1734450998837,0.047114,106120.0,106110.0,0.87959553]
[1734450999037,0.407914,106120.0,106110.0,1.44134976]
[1734450999235,0.407914,106120.0,106110.0,0.98287223]
[1734450999430,0.3608,106130.0,106120.0,0.047114]
[1734450999638,0.407905,106140.0,106120.0,1.5887382]
[1734450999946,0.047105,106140.0,106130.0,0.61906997]
[1734451000237,0.047105,106140.0,106130.0,0.047109]
[1734451000627,1.15534945,106150.0,106130.0,0.047109]
[1734451000835,1.15534945,106150.0,106140.0,1.17952495]
[1734451001040,1.30841392,106150.0,106140.0,1.17952495]
[1734451001235,1.30841392,106150.0,106140.0,1.06723944]
[1734451002040,1.30841392,106150.0,106140.0,0.50556089]
[1734451002337,0.047105,106140.0,106130.0,0.55272644]
[1734451002545,0.407905,106140.0,106130.0,0.55272644]
[1734451003931,0.56096947,106140.0,106120.0,1.06729599]
[1734451004141,0.047114,106120.0,106110.0,0.421117]
[1734451004443,0.51015691,106120.0,106110.0,0.56182486]
[1734451004743,0.89375691,106120.0,106110.0,0.56182486]
[1734451004931,0.791514,106120.0,106110.0,1.06748181]
[1734451005334,0.791514,106120.0,106110.0,0.50565695]
[1734451006145,0.791514,106120.0,106110.0,1.06748181]
[1734451006350,0.407914,106120.0,106110.0,0.50565695]
[1734451006547,0.407914,106120.0,106110.0,1.11459981]
[1734451007037,0.3608,106120.0,106110.0,1.21684272]
[1734451007233,0.047111,106130.0,106120.0,0.047114]
[1734451007535,1.141447,106140.0,106120.0,1.04370862]
[1734451007735,1.141447,106140.0,106130.0,0.56140962]
[1734451007736,0.755747,106140.0,106130.0,0.56140962]
[1734451007938,0.755747,106140.0,106130.0,1.22651324]
[1734451008237,0.407907,106140.0,106130.0,1.22651324]
[1734451008439,0.42127099,106150.0,106130.0,0.66510362]
[1734451008636,0.42127099,106150.0,106140.0,0.56136964]
[1734451008843,0.46837499,106150.0,106130.0,0.047109]
[1734451009039,0.42127099,106150.0,106130.0,0.047109]
[1734451009243,0.047105,106140.0,106130.0,0.047109]
[1734451009446,0.047105,106140.0,106130.0,0.60840456]
[1734451009642,0.42127099,106150.0,106140.0,0.047105]
[1734451009845,0.06047099,106150.0,106140.0,0.55228329]
[1734451010645,0.407898,106160.0,106140.0,0.14934491]
[1734451010846,0.407898,106160.0,106150.0,1.1787246]
[1734451011059,0.407898,106160.0,106150.0,0.61742512]
[1734451011236,0.51014091,106160.0,106150.0,0.56129948]
[1734451011636,0.047102,106150.0,106130.0,0.96920748]
[1734451011835,0.37366759,106160.0,106130.0,1.08406184]
[1734451012039,0.37366759,106160.0,106140.0,0.047103]
[1734451012040,0.42076559,106160.0,106140.0,0.047103]
[1734451012239,0.42076559,106160.0,106140.0,0.60840248]
[1734451013152,0.46786459,106160.0,106140.0,0.60840248]
[1734451013446,0.42076559,106160.0,106140.0,0.60840248]
[1734451013746,0.42076559,106160.0,106150.0,0.94619948]
[1734451014142,0.42076559,106160.0,106150.0,1.5636246]
[1734451014443,0.42076559,106160.0,106150.0,1.00232512]
[1734451014651,0.05996559,106160.0,106150.0,1.00232512]
[1734451014853,0.05996559,106160.0,106150.0,0.94717775]
[1734451015053,0.05996559,106160.0,106150.0,0.432]
[1734451015242,0.3608,106170.0,106160.0,0.047096]
[1734451015436,0.04760801,106180.0,106160.0,1.03546803]
[1734451015735,0.407888,106180.0,106170.0,0.56241067]
[1734451016355,0.40929741,106190.0,106170.0,0.71174158]
[1734451016552,0.04849741,106190.0,106170.0,0.71174158]
[1734451016745,0.04849741,106190.0,106170.0,1.6899667]
[1734451017051,0.04849741,106190.0,106180.0,0.92231067]
[1734451017254,0.40929741,106190.0,106180.0,0.92231067]
[1734451017553,0.40929741,106190.0,106180.0,0.96939767]
[1734451017847,0.01441354,106190.0,106180.0,0.96939767]
[1734451018049,0.42229654,106190.0,106180.0,0.92231067]
[1734451018252,0.42229654,106190.0,106180.0,0.3599]
[1734451018455,0.42229654,106190.0,106180.0,0.92231067]
[1734451019040,0.42088313,106190.0,106180.0,0.3599]
[1734451019342,0.3608,106190.0,106180.0,0.50922991]
[1734451019852,0.3608,106190.0,106180.0,0.82652991]
[1734451020039,0.4608,106200.0,106190.0,0.047083]
[1734451020243,0.4608,106200.0,106190.0,0.14932591]
[1734451020647,0.1,106200.0,106190.0,0.14932591]
[1734451021156,0.1,106200.0,106190.0,1.17477949]
[1734451021451,0.1,106200.0,106190.0,1.38763658]
[1734451021649,0.1,106200.0,106190.0,1.02683658]
[1734451021846,0.507878,106200.0,106190.0,0.87751067]
[1734451022046,0.507878,106200.0,106190.0,0.3151]
[1734451022249,0.147078,106200.0,106190.0,0.3151]
[1734451022447,0.147078,106200.0,106190.0,0.41734291]
[1734451022849,0.507878,106200.0,106190.0,0.41734291]
[1734451023055,0.147078,106200.0,106190.0,0.10224291]
[1734451023255,0.047083,106190.0,106180.0,1.02455358]
[1734451023451,0.407883,106190.0,106180.0,0.3599]
[1734451024140,0.407883,106190.0,106180.0,0.46214291]
[1734451024849,0.407883,106190.0,106180.0,0.50922991]
[1734451025052,0.1,106200.0,106190.0,0.047083]
[1734451025259,0.1,106200.0,106190.0,0.77082591]
[1734451025749,0.1,106200.0,106190.0,1.69403658]
[1734451025946,0.1,106200.0,106190.0,1.33323658]
[1734451026151,0.507878,106200.0,106180.0,1.58730179]
[1734451026348,0.507878,106200.0,106180.0,0.406986]
[1734451026549,0.047083,106190.0,106180.0,0.50922891]
[1734451026747,0.147079,106200.0,106180.0,0.87002591]
[1734451026950,0.1,106200.0,106190.0,0.14932591]
[1734451027148,0.1,106200.0,106190.0,1.07253658]
[1734451027750,0.1,106200.0,106190.0,0.51012591]
[1734451027957,0.1,106200.0,106190.0,0.14932591]
[1734451028258,0.1,106200.0,106190.0,0.51012591]
[1734451031753,0.24932091,106200.0,106180.0,0.78035464]
[1734451031945,0.147078,106200.0,106180.0,1.34276531]
[1734451032151,0.1,106200.0,106190.0,0.14932591]
[1734451032359,0.1,106200.0,106190.0,0.51012591]
[1734451032572,0.1,106200.0,106190.0,0.81012591]
[1734451033061,0.1,106200.0,106190.0,0.91236882]
[1734451033251,9.236e-05,106210.0,106200.0,0.047078]
[1734451033566,9.236e-05,106210.0,106200.0,1.25376382]
[1734451034255,9.236e-05,106210.0,106200.0,1.55376382]
[1734451034448,0.0014127,106230.0,106220.0,0.14931191]
[1734451034653,0.0014127,106230.0,106220.0,0.51011191]
[1734451036150,1.419257,106250.0,106230.0,0.047065]
[1734451036451,1.419257,106250.0,106230.0,0.14930791]
[1734451037259,0.04706,106240.0,106220.0,0.047068]
[1734451037459,0.04706,106240.0,106220.0,0.55717491]
[1734451037658,0.01194346,106260.0,106250.0,0.047056]
[1734451037858,0.00011483,106270.0,106260.0,0.047052]
[1734451038059,0.04716283,106270.0,106250.0,0.14929691]
[1734451038249,0.04716283,106270.0,106260.0,0.047052]
[1734451038250,0.00011483,106270.0,106260.0,0.047052]
[1734451038452,0.00011483,106270.0,106260.0,0.14929491]
[1734451038953,0.00011483,106270.0,106260.0,0.047052]
[1734451042355,0.36091483,106270.0,106260.0,0.047052]
[1734451042553,1.86091483,106270.0,106260.0,0.047052]
[1734451042758,1.50011483,106270.0,106260.0,0.047052]
[1734451043155,0.00011483,106270.0,106260.0,0.047052]
[1734451044858,0.00011483,106270.0,106260.0,0.05891386]
[1734451046258,0.00011483,106270.0,106260.0,0.62419968]
[1734451046464,0.00011483,106270.0,106260.0,0.62429204]
[1734451046763,0.6709,106290.0,106280.0,0.047043]
[1734451047270,0.6709,106290.0,106280.0,0.14928591]
[1734451048756,0.6709,106290.0,106280.0,0.047043]
[1734451049063,0.6709,106290.0,106280.0,0.10224291]
[1734451049456,0.6709,106290.0,106280.0,0.14928591]
[1734451049865,0.3608,106290.0,106280.0,0.14928591]
[1734451050066,0.3608,106290.0,106280.0,0.14937151]
[1734451053561,0.3608,106290.0,106280.0,0.25161442]
[1734451053955,0.3608,106300.0,106280.0,0.55161442]
[1734451054153,0.36087764,106310.0,106300.0,0.047034]
[1734451054364,0.36080001,106310.0,106300.0,0.14927691]
[1734451054571,0.36080001,106310.0,106300.0,0.047034]
[1734451054865,0.36080001,106310.0,106300.0,0.14927691]
[1734451056572,1e-08,106310.0,106300.0,0.51007691]
[1734451056770,1e-08,106310.0,106300.0,0.83927691]
[1734451057764,1e-08,106310.0,106300.0,1.13927691]
[1734451058267,0.3608,106330.0,106320.0,0.047025]
[1734451058562,1.374,106340.0,106330.0,0.047021]
[1734451058773,1.374,106340.0,106330.0,0.14926391]
[1734451059161,0.7304,106340.0,106330.0,0.14926391]
[1734451059360,0.7304,106340.0,106330.0,0.14935197]
[1734451059555,0.3608,106340.0,106330.0,0.14935197]
[1734451060166,0.3608,106340.0,106330.0,0.46525197]
[1734451060561,0.3608,106370.0,106360.0,0.047007]
[1734451060871,0.3608,106370.0,106360.0,0.14924991]
[1734451061372,0.3608,106370.0,106360.0,0.14932181]
[1734451061577,0.3608,106370.0,106360.0,0.0470789]
[1734451062265,1.37693905,106380.0,106370.0,0.047003]
[1734451063069,1.36477625,106380.0,106370.0,0.14924591]
[1734451063278,1e-08,106380.0,106370.0,0.51004591]
[1734451063580,0.10141046,106400.0,106390.0,0.046994]
[1734451063769,0.1,106400.0,106390.0,0.10224291]
[1734451064070,0.4608,106400.0,106390.0,0.14923691]
[1734451064257,0.1,106400.0,106390.0,0.1580461]
[1734451064460,0.1,106400.0,106390.0,0.05580319]
[1734451064661,0.1,106400.0,106390.0,0.05587778]
[1734451064871,0.1,106400.0,106390.0,0.04706859]
[1734451065069,0.4608,106400.0,106380.0,0.33712236]
[1734451065369,0.4608,106400.0,106390.0,0.046994]
[1734451066272,0.4608,106400.0,106390.0,0.04709549]
[1734451068380,0.43145507,106400.0,106390.0,0.05590468]
[1734451068582,0.43145507,106400.0,106390.0,0.01184517]
[1734451068877,0.43145507,106400.0,106390.0,0.05883917]
[1734451069481,0.34576775,106400.0,106390.0,0.06353436]
[1734451070175,0.34576775,106400.0,106390.0,0.16577727]
[1734451070370,0.34576775,106400.0,106390.0,0.16108208]
[1734451071171,0.34576775,106400.0,106390.0,0.15227289]
[1734451071372,0.3608,106410.0,106390.0,0.15227289]
[1734451071571,0.3608,106410.0,106400.0,0.04699]
[1734451071975,0.3608,106410.0,106400.0,0.04992436]
[1734451072363,0.3608,106410.0,106400.0,0.04699]
[1734451072978,0.3608,106410.0,106400.0,0.14923291]
[1734451073169,0.3608,106410.0,106400.0,0.1580421]
[1734451073472,0.3608,106410.0,106400.0,0.16097635]
[1734451073674,0.30798367,106410.0,106400.0,0.16097635]
[1734451074077,0.3608,106420.0,106410.0,0.046985]
[1734451074270,0.00141003,106430.0,106410.0,0.46304291]
[1734451074470,0.00141003,106430.0,106420.0,0.046981]
[1734451074766,0.00141003,106430.0,106420.0,0.407781]
[1734451074971,0.00141003,106430.0,106420.0,0.046981]
[1734451075172,0.15062994,106430.0,106410.0,0.046985]
[1734451075372,0.51142994,106430.0,106410.0,0.046985]
[1734451075575,0.51142994,106430.0,106410.0,0.407785]
[1734451076483,0.51142994,106430.0,106410.0,0.41071898]
[1734451076883,0.3608,106420.0,106410.0,0.05872817]
[1734451077388,0.3608,106420.0,106410.0,0.06342279]
[1734451078083,1.90974704,106430.0,106410.0,0.05579419]
[1734451078287,1.90918703,106430.0,106410.0,0.42422305]
[1734451078482,1.81529602,106430.0,106410.0,0.42422305]
[1734451078682,0.31529602,106430.0,106410.0,0.42422305]
[1734451078983,0.51002391,106420.0,106410.0,0.01643805]
[1734451079282,3.00422391,106420.0,106410.0,0.01643805]
[1734451079872,1.401981,106420.0,106410.0,0.01643805]
[1734451080075,1.355,106420.0,106410.0,0.06342305]
[1734451080280,0.91790588,106420.0,106410.0,0.08271727]
[1734451080881,0.91790588,106420.0,106410.0,0.05872837]
[1734451081073,1.38094879,106420.0,106410.0,0.01174337]
[1734451081275,1.42792979,106420.0,106410.0,0.03573227]
[1734451081483,1.42792979,106420.0,106410.0,0.03279809]
[1734451081681,1.42792979,106420.0,106410.0,0.00880919]
[1734451082490,1.42792979,106420.0,106410.0,0.03279809]
[1734451082988,0.39455574,106440.0,106430.0,0.046976]
[1734451083178,0.73075574,106440.0,106430.0,0.07977409]
[1734451083377,0.73075574,106440.0,106430.0,0.0709649]
[1734451083378,0.71193533,106440.0,106430.0,0.0709649]
[1734451083582,0.33627249,106440.0,106430.0,0.44057409]
[1734451083788,0.28346897,106440.0,106430.0,0.07977409]
[1734451083983,0.74651188,106440.0,106430.0,0.07977409]
[1734451084390,0.74651188,106440.0,106430.0,0.08270792]
[1734451085087,0.28346897,106440.0,106430.0,0.08270792]
[1734451085395,0.79348388,106440.0,106430.0,0.01174302]
[1734451085579,0.8553565,106440.0,106430.0,0.06129081]
[1734451085980,0.046979,106430.0,106410.0,0.04708647]
[1734451086182,0.51002391,106420.0,106410.0,0.38177495]
[1734451086480,0.78514258,106420.0,106410.0,0.00469486]
[1734451086686,1.11674258,106420.0,106410.0,0.00469486]
[1734451086890,1.51898549,106420.0,106410.0,0.00469486]
[1734451087092,0.046994,106390.0,106380.0,0.046997]
[1734451087278,0.51003691,106390.0,106380.0,0.04709165]
[1734451087478,0.407794,106390.0,106380.0,0.04709165]
[1734451088195,0.046994,106390.0,106380.0,0.04709165]
[1734451088489,0.04842072,106390.0,106380.0,0.04709165]
[1734451089395,0.51146363,106390.0,106380.0,9.465e-05]
[1734451089595,0.82766363,106390.0,106380.0,9.465e-05]
[1734451089780,0.82830313,106390.0,106380.0,9.465e-05]
[1734451090297,0.047003,106370.0,106360.0,0.43720317]
[1734451090590,0.14924591,106370.0,106360.0,0.43720317]
[1734451090791,0.36286422,106370.0,106360.0,0.14924991]
[1734451090991,0.407791,106400.0,106360.0,1.34410925]
[1734451091191,0.407791,106400.0,106390.0,0.046994]
[1734451091485,0.407791,106400.0,106390.0,0.0470625]
[1734451091690,0.51003391,106400.0,106390.0,6.85e-05]
[1734451092202,0.56036865,106400.0,106390.0,6.85e-05]
[1734451092500,0.407791,106400.0,106390.0,6.85e-05]
[1734451092895,0.407791,106400.0,106390.0,0.0470625]
[1734451093093,0.046991,106400.0,106390.0,0.0470625]
[1734451093891,0.3608,106400.0,106390.0,0.0470625]
[1734451094097,0.04699,106400.0,106390.0,0.0470625]
[1734451094691,0.56036765,106400.0,106390.0,6.85e-05]
[1734451095992,0.40779,106400.0,106390.0,0.08338273]
[1734451096187,0.04699,106400.0,106390.0,0.08338273]
[1734451096999,0.04827892,106400.0,106390.0,0.08338273]
[1734451097394,0.04827892,106400.0,106390.0,0.47588954]
[1734451097702,0.06532215,106420.0,106410.0,0.046985]
[1734451098000,0.40918834,106430.0,106410.0,0.44410123]
[1734451098199,0.40918834,106430.0,106420.0,0.046981]
[1734451098503,0.37984652,106430.0,106420.0,0.08623541]
[1734451098702,0.37984652,106430.0,106420.0,0.03925441]
[1734451099092,0.06558889,106450.0,106420.0,0.59968156]
[1734451099288,0.06558889,106450.0,106440.0,0.407772]
[1734451099289,0.01861989,106450.0,106440.0,0.407772]
[1734451099487,0.01861989,106450.0,106440.0,0.43528653]
[1734451099786,0.01861989,106450.0,106440.0,0.08622641]
[1734451100005,0.01861989,106450.0,106440.0,0.08622565]
[1734451100300,0.06558789,106450.0,106440.0,0.08622565]
[1734451100494,0.02334659,106450.0,106440.0,0.08622565]
[1734451101401,0.53672424,106450.0,106440.0,0.03925365]
[1734451101789,0.53672424,106450.0,106440.0,0.01173912]
[1734451101995,2.03672424,106450.0,106440.0,0.01173912]
[1734451102495,2.03672424,106450.0,106440.0,0.03925365]
[1734451102900,2.05551538,106450.0,106440.0,0.03925365]
[1734451103301,0.40293773,106450.0,106440.0,0.08622565]
[1734451103711,0.04213773,106450.0,106440.0,0.08622565]
[1734451103999,0.046968,106450.0,106440.0,0.0957338]
[1734451104607,0.38664562,106450.0,106440.0,0.10042766]
[1734451104804,0.53922327,106450.0,106440.0,0.01643298]
[1734451105194,0.53922327,106450.0,106440.0,0.04394751]
[1734451105799,0.52232456,106450.0,106440.0,0.07049871]
[1734451106115,0.51337765,106450.0,106440.0,0.07049914]
[1734451106409,0.42677505,106450.0,106440.0,0.07636666]